{"text_format":"1","workbook":"xlsx","n_sheets":14,"sheets":["E023 IND 1","E023 IND 2","E023 IND 3","E023 IND 4","E023 IND 5","E023 IND 6","E023 IND 7","E023 IND 8","E023 IND 9","E023 IND 10","E023 IND 11","E023 IND 12","E023 IND 13","E023 IND 14"],"not_rendered":{"charts":42,"images":1,"macros":1,"external_links":0,"defined_names":42,"comments":0,"pivot_tables":0},"unopened":[],"bounds":{"document_bytes":16777216,"sheet_cells":100000,"rows_first":2000,"rows_last":500,"rows_between":2000,"halvings":0,"cell_chars":16384,"cell_head_chars":4096},"cells_cut":0,"cells_raw":0,"read":"whole","date_system":"1900"}

{"sheet":"E023 IND 1","index":0,"n_rows":50,"n_cols":7,"rows_kept":50,"cut":false,"hidden":false,"merged":[[33,3,33,4],[33,5,46,6],[48,3,48,4],[48,5,48,6],[49,3,49,4],[49,5,49,6],[32,3,32,4],[32,5,32,6],[12,6,12,7],[13,1,23,1],[13,2,13,3],[14,2,14,3],[16,2,23,2],[25,3,25,6],[26,3,26,6],[27,1,27,6],[28,1,28,6],[29,1,29,6],[30,1,30,6],[2,4,2,5],[3,4,3,5],[4,4,4,5],[5,4,5,5],[7,1,7,3]]}
[null,"COMISION COORDINADORA DE INSTITUTOS NACIONALES DE SALUD"]
[null,"Y HOSPITALES DE ALTA ESPECIALIDAD"]
[null,"Coordinación de Proyectos Estratégicos",null,null,"MATRIZ DE INDICADORES PARA RESULTADOS (MIR) 2016"]
[null,null,null,null,"PP:  E023 \"ATENCIÓN A LA SALUD\""]
[]
[null,null,null,null,"EVOLUCIÓN EN EL PERIODO"]
[]
[null,"Clave entidad/unidad:     NCA"]
[]
[null,"Entidad/unidad:     INSTITUTO NACIONAL DE CARDIOLOGÍA IGNACIO CHÁVEZ"]
[]
[]
[]
[null,1,"LINEA BASE INDICADOR",null,"INDICADOR","VARIABLE 1 ","VARIABLE 2"]
[null,null,"AÑO",null,"Porcentaje de pacientes referidos por instituciones públicas de salud a los que se les apertura expediente clínico institucional\n\nFÓRMULA: VARIABLE1 / VARIABLE2 X 100","Número de pacientes que han sido referidos por instituciones públicas de salud a los cuales se les apertura expediente clínico institucional en el periodo de evaluación ","Total de pacientes a los cuales se les apertura expediente clínico en el periodo de evaluación x 100\n"]
[null,null,"1/","2015",{"$f":"IF(G16=0,0,ROUND((F16)/G16*100,1))","v":31.6},85375,270038]
[null,null,"2/","2009",{"$f":"IF(G17=0,0,ROUND(F17/G17*100,1))","v":0}]
[null,null,null,"2010",{"$f":"IF(G18=0,0,ROUND(F18/G18*100,1))","v":0}]
[null,null,null,"2011",0]
[null,null,null,"2012",0]
[null,null,null,"2013",0]
[null,null,null,"2014",0]
[null,null,null,"2015",9.9,624,6279]
[null,null,null,"2016",12,772,6425]
[]
[null,"1/",null,"Línea base del indicador registrada en el PASH 2016: año en que empieza a operar el indicador para el programa (CCINSHAE)."]
[null,"2/",null,"Línea base del indicador institucional: año en que empieza a operar el indicador para la Institución."]
[null,"INSTRUCTIVO"]
[null,"I. Llenar los valores de la tabla a partir del año en que la entidad comprometió el indicador (Línea base)"]
[null,"II. Llenar todos los ejercicios fiscales posteriores al año de la línea base hasta el año 2016 con el valor de cierre de cada ejercicio fiscal; en el caso que sea un indicador nuevo registrar el valor programado."]
[null,"III. Los ejercicios fiscales en que no se comprometío el indicador deberán registrar un valor de cero."]
[]
[null,null,null,{"$f":"E14","v":"INDICADOR"},null,"Breve Explicación del comportamiento del indicador y sus variables en el periodo (desde línea base)"]
[null,null,null,{"$f":"E15","v":"Porcentaje de pacientes referidos por instituciones públicas de salud a los que se les apertura expediente clínico institucionalFÓRMULA: VARIABLE1 / VARIABLE2 X 100"}]
[]
[]
[]
[]
[]
[]
[]
[]
[]
[]
[]
[]
[]
[]
[null,null,null,{"$f":"F14","v":"VARIABLE 1 "},null,{"$f":"G14","v":"VARIABLE 2"}]
[null,null,null,{"$f":"F15","v":"Número de pacientes que han sido referidos por instituciones públicas de salud a los cuales se les apertura expediente clínico institucional en el periodo de evaluación "},null,{"$f":"G15","v":"Total de pacientes a los cuales se les apertura expediente clínico en el periodo de evaluación x 100"}]

{"sheet":"E023 IND 2","index":1,"n_rows":50,"n_cols":7,"rows_kept":50,"cut":false,"hidden":false,"merged":[[33,3,33,4],[33,5,46,6],[48,3,48,4],[48,5,48,6],[49,3,49,4],[49,5,49,6],[32,3,32,4],[32,5,32,6],[12,6,12,7],[13,1,23,1],[13,2,13,3],[14,2,14,3],[16,2,23,2],[25,3,25,6],[26,3,26,6],[27,1,27,6],[28,1,28,6],[29,1,29,6],[30,1,30,6],[2,4,2,5],[3,4,3,5],[4,4,4,5],[5,4,5,5],[7,1,7,3]]}
[null,"COMISION COORDINADORA DE INSTITUTOS NACIONALES DE SALUD"]
[null,"Y HOSPITALES DE ALTA ESPECIALIDAD"]
[null,"Coordinación de Proyectos Estratégicos",null,null,"MATRIZ DE INDICADORES PARA RESULTADOS (MIR) 2016"]
[null,null,null,null,"PP:  E023 \"ATENCIÓN A LA SALUD\""]
[]
[null,null,null,null,"EVOLUCIÓN EN EL PERIODO"]
[]
[null,"Clave entidad/unidad:  NCA"]
[]
[null,"Entidad/unidad:  INSTITUTO NACIONAL DE CARDIOLOGÍA IGNACIO CHÁVEZ"]
[]
[]
[]
[null,2,"LINEA BASE INDICADOR",null,"INDICADOR","VARIABLE 1 ","VARIABLE 2"]
[null,null,"AÑO",null,"Porcentaje de egresos hospitalarios por mejoría y curación\n\nFÓRMULA: VARIABLE1 / VARIABLE2 X 100","Número de egresos hospitalarios por mejoría y curación ","Total de egresos hospitalarios x 100"]
[null,null,"1/","2009",{"$f":"IF(G16=0,0,ROUND(F16/G16*100,1))","v":91.5},155162,169666]
[null,null,"2/","2009",{"$f":"IF(G17=0,0,ROUND(F17/G17*100,1))","v":75.3},4428,5880]
[null,null,null,"2010",{"$f":"IF(G18=0,0,ROUND(F18/G18*100,1))","v":82.7},4686,5667]
[null,null,null,"2011",86.5,4974,5752]
[null,null,null,"2012",89,5029,5650]
[null,null,null,"2013",89.4,4979,5569]
[null,null,null,"2014",90,5086,5651]
[null,null,null,"2015",87.6,4983,5689]
[null,null,null,"2016",82.4,4771,5792]
[]
[null,"1/",null,"Línea base del indicador registrada en el PASH 2016: año en que empieza a operar el indicador para el programa (CCINSHAE)."]
[null,"2/",null,"Línea base del indicador institucional: año en que empieza a operar el indicador para la Institución."]
[null,"INSTRUCTIVO"]
[null,"I. Llenar los valores de la tabla a partir del año en que la entidad comprometió el indicador (Línea base)"]
[null,"II. Llenar todos los ejercicios fiscales posteriores al año de la línea base hasta el año 2016 con el valor de cierre de cada ejercicio fiscal; en el caso que sea un indicador nuevo registrar el valor programado."]
[null,"III. Los ejercicios fiscales en que no se comprometío el indicador deberán registrar un valor de cero."]
[]
[null,null,null,{"$f":"E14","v":"INDICADOR"},null,"Breve Explicación del comportamiento del indicador y sus variables en el periodo (desde línea base)"]
[null,null,null,{"$f":"E15","v":"Porcentaje de egresos hospitalarios por mejoría y curaciónFÓRMULA: VARIABLE1 / VARIABLE2 X 100"},null,"Durante el periodo se observa un crecimiento en el porcentaje de egresos por mejoría; la aplicación de procedimientos terapéuticos realizados en el servicio de hemodinamia ha permitido estos resultados, debido a la disminución de riesgo para los pacientes,  lo que a su vez deriva en una recuperación más rápida."]
[]
[]
[]
[]
[]
[]
[]
[]
[]
[]
[]
[]
[]
[]
[null,null,null,{"$f":"F14","v":"VARIABLE 1 "},null,{"$f":"G14","v":"VARIABLE 2"}]
[null,null,null,{"$f":"F15","v":"Número de egresos hospitalarios por mejoría y curación "},null,{"$f":"G15","v":"Total de egresos hospitalarios x 100"}]

{"sheet":"E023 IND 3","index":2,"n_rows":50,"n_cols":7,"rows_kept":50,"cut":false,"hidden":false,"merged":[[33,3,33,4],[33,5,46,6],[48,3,48,4],[48,5,48,6],[49,3,49,4],[49,5,49,6],[32,3,32,4],[32,5,32,6],[12,6,12,7],[13,1,23,1],[13,2,13,3],[14,2,14,3],[16,2,23,2],[25,3,25,6],[26,3,26,6],[27,1,27,6],[28,1,28,6],[29,1,29,6],[30,1,30,6],[2,4,2,5],[3,4,3,5],[4,4,4,5],[5,4,5,5],[7,1,7,3]]}
[null,"COMISION COORDINADORA DE INSTITUTOS NACIONALES DE SALUD"]
[null,"Y HOSPITALES DE ALTA ESPECIALIDAD"]
[null,"Coordinación de Proyectos Estratégicos",null,null,"MATRIZ DE INDICADORES PARA RESULTADOS (MIR) 2016"]
[null,null,null,null,"PP:  E023 \"ATENCIÓN A LA SALUD\""]
[]
[null,null,null,null,"EVOLUCIÓN EN EL PERIODO"]
[]
[null,"Clave entidad/unidad:  NCA"]
[]
[null,"Entidad/unidad:   INSTITUTO NACIONAL DE CARDIOLOGÍA IGNACIO CHÁVEZ"]
[]
[]
[]
[null,3,"LINEA BASE INDICADOR",null,"INDICADOR","VARIABLE 1 ","VARIABLE 2"]
[null,null,"AÑO",null,"Porcentaje de usuarios con percepción de \nsatisfacción de la calidad de la atención médica ambulatoria recibida superior a 80 puntos  \n\nFÓRMULA: VARIABLE1 / VARIABLE2 X 100","Número de usuarios en atención ambulatoria que manifestaron una calificación de percepción de satisfacción de la calidad de la atención recibida superior a 80 puntos ","Total de usuarios en atención ambulatoria encuestados x 100\n"]
[null,null,"1/","2016",{"$f":"IF(G16=0,0,ROUND(F16/G16*100,1))","v":87.4},43389,49639]
[null,null,"2/","2009",{"$f":"IF(G17=0,0,ROUND(F17/G17*100,1))","v":0}]
[null,null,null,"2010",{"$f":"IF(G18=0,0,ROUND(F18/G18*100,1))","v":0}]
[null,null,null,"2011",0]
[null,null,null,"2012",0]
[null,null,null,"2013",0]
[null,null,null,"2014",0]
[null,null,null,"2015",0]
[null,null,null,"2016",88.7,1185,1336]
[]
[null,"1/",null,"Línea base del indicador registrada en el PASH 2016: año en que empieza a operar el indicador para el programa (CCINSHAE)."]
[null,"2/",null,"Línea base del indicador institucional: año en que empieza a operar el indicador para la Institución."]
[null,"INSTRUCTIVO"]
[null,"I. Llenar los valores de la tabla a partir del año en que la entidad comprometió el indicador (Línea base)"]
[null,"II. Llenar todos los ejercicios fiscales posteriores al año de la línea base hasta el año 2016 con el valor de cierre de cada ejercicio fiscal; en el caso que sea un indicador nuevo registrar el valor programado."]
[null,"III. Los ejercicios fiscales en que no se comprometío el indicador deberán registrar un valor de cero."]
[]
[null,null,null,{"$f":"E14","v":"INDICADOR"},null,"Breve Explicación del comportamiento del indicador y sus variables en el periodo (desde línea base)"]
[null,null,null,{"$f":"E15","v":"Porcentaje de usuarios con percepción de satisfacción de la calidad de la atención médica ambulatoria recibida superior a 80 puntos  FÓRMULA: VARIABLE1 / VARIABLE2 X 100"}]
[]
[]
[]
[]
[]
[]
[]
[]
[]
[]
[]
[]
[]
[]
[null,null,null,{"$f":"F14","v":"VARIABLE 1 "},null,{"$f":"G14","v":"VARIABLE 2"}]
[null,null,null,{"$f":"F15","v":"Número de usuarios en atención ambulatoria que manifestaron una calificación de percepción de satisfacción de la calidad de la atención recibida superior a 80 puntos "},null,{"$f":"G15","v":"Total de usuarios en atención ambulatoria encuestados x 100"}]

{"sheet":"E023 IND 4","index":3,"n_rows":50,"n_cols":7,"rows_kept":50,"cut":false,"hidden":false,"merged":[[33,3,33,4],[33,5,46,6],[48,3,48,4],[48,5,48,6],[49,3,49,4],[49,5,49,6],[32,3,32,4],[32,5,32,6],[12,6,12,7],[13,1,23,1],[13,2,13,3],[14,2,14,3],[16,2,23,2],[25,3,25,6],[26,3,26,6],[27,1,27,6],[28,1,28,6],[29,1,29,6],[30,1,30,6],[2,4,2,5],[3,4,3,5],[4,4,4,5],[5,4,5,5],[7,1,7,3]]}
[null,"COMISION COORDINADORA DE INSTITUTOS NACIONALES DE SALUD"]
[null,"Y HOSPITALES DE ALTA ESPECIALIDAD"]
[null,"Coordinación de Proyectos Estratégicos",null,null,"MATRIZ DE INDICADORES PARA RESULTADOS (MIR) 2016"]
[null,null,null,null,"PP:  E023 \"ATENCIÓN A LA SALUD\""]
[]
[null,null,null,null,"EVOLUCIÓN EN EL PERIODO"]
[]
[null,"Clave entidad/unidad:  NCA"]
[]
[null,"Entidad/unidad:   INSTITUTO NACIONAL DE CARDIOLOGÍA IGNACIO CHÁVEZ"]
[]
[]
[]
[null,4,"LINEA BASE INDICADOR",null,"INDICADOR","VARIABLE 1 ","VARIABLE 2"]
[null,null,"AÑO",null,"Porcentaje de sesiones de rehabilitación especializadas realizadas respecto al total realizado\n\nFÓRMULA: VARIABLE1 / VARIABLE2 X 100","Número de sesiones de rehabilitación especializadas realizadas","Total de sesiones de rehabilitación realizadas \nx 100"]
[null,null,"1/","2016",{"$f":"IF(G16=0,0,ROUND(F16/G16*100,1))","v":83.1},1218268,1466618]
[null,null,"2/","2009",{"$f":"IF(G17=0,0,ROUND(F17/G17*100,1))","v":0}]
[null,null,null,"2010",{"$f":"IF(G18=0,0,ROUND(F18/G18*100,1))","v":0}]
[null,null,null,"2011",0]
[null,null,null,"2012",0]
[null,null,null,"2013",0]
[null,null,null,"2014",0]
[null,null,null,"2015",0]
[null,null,null,"2016",82.6,11913,14417]
[]
[null,"1/",null,"Línea base del indicador registrada en el PASH 2016: año en que empieza a operar el indicador para el programa (CCINSHAE)."]
[null,"2/",null,"Línea base del indicador institucional: año en que empieza a operar el indicador para la Institución."]
[null,"INSTRUCTIVO"]
[null,"I. Llenar los valores de la tabla a partir del año en que la entidad comprometió el indicador (Línea base)"]
[null,"II. Llenar todos los ejercicios fiscales posteriores al año de la línea base hasta el año 2016 con el valor de cierre de cada ejercicio fiscal; en el caso que sea un indicador nuevo registrar el valor programado."]
[null,"III. Los ejercicios fiscales en que no se comprometío el indicador deberán registrar un valor de cero."]
[]
[null,null,null,{"$f":"E14","v":"INDICADOR"},null,"Breve Explicación del comportamiento del indicador y sus variables en el periodo (desde línea base)"]
[null,null,null,{"$f":"E15","v":"Porcentaje de sesiones de rehabilitación especializadas realizadas respecto al total realizadoFÓRMULA: VARIABLE1 / VARIABLE2 X 100"}]
[]
[]
[]
[]
[]
[]
[]
[]
[]
[]
[]
[]
[]
[]
[null,null,null,{"$f":"F14","v":"VARIABLE 1 "},null,{"$f":"G14","v":"VARIABLE 2"}]
[null,null,null,{"$f":"F15","v":"Número de sesiones de rehabilitación especializadas realizadas"},null,{"$f":"G15","v":"Total de sesiones de rehabilitación realizadas x 100"}]

{"sheet":"E023 IND 5","index":4,"n_rows":50,"n_cols":7,"rows_kept":50,"cut":false,"hidden":false,"merged":[[33,3,33,4],[33,5,46,6],[48,3,48,4],[48,5,48,6],[49,3,49,4],[49,5,49,6],[32,3,32,4],[32,5,32,6],[12,6,12,7],[13,1,23,1],[13,2,13,3],[14,2,14,3],[16,2,23,2],[25,3,25,6],[26,3,26,6],[27,1,27,6],[28,1,28,6],[29,1,29,6],[30,1,30,6],[2,4,2,5],[3,4,3,5],[4,4,4,5],[5,4,5,5],[7,1,7,3]]}
[null,"COMISION COORDINADORA DE INSTITUTOS NACIONALES DE SALUD"]
[null,"Y HOSPITALES DE ALTA ESPECIALIDAD"]
[null,"Coordinación de Proyectos Estratégicos",null,null,"MATRIZ DE INDICADORES PARA RESULTADOS (MIR) 2016"]
[null,null,null,null,"PP:  E023 \"ATENCIÓN A LA SALUD\""]
[]
[null,null,null,null,"EVOLUCIÓN EN EL PERIODO"]
[]
[null,"Clave entidad/unidad:   NCA"]
[]
[null,"Entidad/unidad:   INSTITUTO NACIONAL DE CARDIOLOGÍA IGNACIO CHÁVEZ"]
[]
[]
[]
[null,5,"LINEA BASE INDICADOR",null,"INDICADOR","VARIABLE 1 ","VARIABLE 2"]
[null,null,"AÑO",null,"Porcentaje de procedimientos diagnósticos ambulatorios de alta especialidad realizados\n\nFÓRMULA: VARIABLE1 / VARIABLE2 X 100","Número de procedimientos diagnósticos ambulatorios realizados considerados de alta especialidad por la institución ","Total de procedimientos diagnósticos realizados \nx 100"]
[null,null,"1/","2016",{"$f":"IF(G16=0,0,ROUND(F16/G16*100,1))","v":37.9},623540,1646227]
[null,null,"2/","2009",{"$f":"IF(G17=0,0,ROUND(F17/G17*100,1))","v":0}]
[null,null,null,"2010",{"$f":"IF(G18=0,0,ROUND(F18/G18*100,1))","v":0}]
[null,null,null,"2011",0]
[null,null,null,"2012",0]
[null,null,null,"2013",0]
[null,null,null,"2014",0]
[null,null,null,"2015",0]
[null,null,null,"2016",18.5,10705,57858]
[]
[null,"1/",null,"Línea base del indicador registrada en el PASH 2016: año en que empieza a operar el indicador para el programa (CCINSHAE)."]
[null,"2/",null,"Línea base del indicador institucional: año en que empieza a operar el indicador para la Institución."]
[null,"INSTRUCTIVO"]
[null,"I. Llenar los valores de la tabla a partir del año en que la entidad comprometió el indicador (Línea base)"]
[null,"II. Llenar todos los ejercicios fiscales posteriores al año de la línea base hasta el año 2016 con el valor de cierre de cada ejercicio fiscal; en el caso que sea un indicador nuevo registrar el valor programado."]
[null,"III. Los ejercicios fiscales en que no se comprometío el indicador deberán registrar un valor de cero."]
[]
[null,null,null,{"$f":"E14","v":"INDICADOR"},null,"Breve Explicación del comportamiento del indicador y sus variables en el periodo (desde línea base)"]
[null,null,null,{"$f":"E15","v":"Porcentaje de procedimientos diagnósticos ambulatorios de alta especialidad realizadosFÓRMULA: VARIABLE1 / VARIABLE2 X 100"}]
[]
[]
[]
[]
[]
[]
[]
[]
[]
[]
[]
[]
[]
[]
[null,null,null,{"$f":"F14","v":"VARIABLE 1 "},null,{"$f":"G14","v":"VARIABLE 2"}]
[null,null,null,{"$f":"F15","v":"Número de procedimientos diagnósticos ambulatorios realizados considerados de alta especialidad por la institución "},null,{"$f":"G15","v":"Total de procedimientos diagnósticos realizados x 100"}]

{"sheet":"E023 IND 6","index":5,"n_rows":50,"n_cols":7,"rows_kept":50,"cut":false,"hidden":false,"merged":[[33,3,33,4],[33,5,46,6],[48,3,48,4],[48,5,48,6],[49,3,49,4],[49,5,49,6],[32,3,32,4],[32,5,32,6],[12,6,12,7],[13,1,23,1],[13,2,13,3],[14,2,14,3],[16,2,23,2],[25,3,25,6],[26,3,26,6],[27,1,27,6],[28,1,28,6],[29,1,29,6],[30,1,30,6],[2,4,2,5],[3,4,3,5],[4,4,4,5],[5,4,5,5],[7,1,7,3]]}
[null,"COMISION COORDINADORA DE INSTITUTOS NACIONALES DE SALUD"]
[null,"Y HOSPITALES DE ALTA ESPECIALIDAD"]
[null,"Coordinación de Proyectos Estratégicos",null,null,"MATRIZ DE INDICADORES PARA RESULTADOS (MIR) 2016"]
[null,null,null,null,"PP:  E023 \"ATENCIÓN A LA SALUD\""]
[]
[null,null,null,null,"EVOLUCIÓN EN EL PERIODO"]
[]
[null,"Clave entidad/unidad:   NCA"]
[]
[null,"Entidad/unidad:   INSTITUTO NACIONAL DE CARDIOLOGÍA IGNACIO CHÁVEZ"]
[]
[]
[]
[null,6,"LINEA BASE INDICADOR",null,"INDICADOR","VARIABLE 1 ","VARIABLE 2"]
[null,null,"AÑO",null,"Porcentaje de procedimientos terapéuticos ambulatorios de alta especialidad realizados\n\nFÓRMULA: VARIABLE1 / VARIABLE2 X 100","Número de procedimientos terapéuticos ambulatorios realizados considerados de alta especialidad por la institución ","Total de procedimientos terapéuticos ambulatorios realizados x 100"]
[null,null,"1/","2016",{"$f":"IF(G16=0,0,ROUND((F16)/G16*100,1))","v":60.9},136317,223920]
[null,null,"2/","2009",{"$f":"IF(G17=0,0,ROUND(F17/G17*100,1))","v":0}]
[null,null,null,"2010",{"$f":"IF(G18=0,0,ROUND(F18/G18*100,1))","v":0}]
[null,null,null,"2011",0]
[null,null,null,"2012",0]
[null,null,null,"2013",0]
[null,null,null,"2014",0]
[null,null,null,"2015",0]
[null,null,null,"2016",0,0,0]
[]
[null,"1/",null,"Línea base del indicador registrada en el PASH 2016: año en que empieza a operar el indicador para el programa (CCINSHAE)."]
[null,"2/",null,"Línea base del indicador institucional: año en que empieza a operar el indicador para la Institución."]
[null,"INSTRUCTIVO"]
[null,"I. Llenar los valores de la tabla a partir del año en que la entidad comprometió el indicador (Línea base)"]
[null,"II. Llenar todos los ejercicios fiscales posteriores al año de la línea base hasta el año 2016 con el valor de cierre de cada ejercicio fiscal; en el caso que sea un indicador nuevo registrar el valor programado."]
[null,"III. Los ejercicios fiscales en que no se comprometío el indicador deberán registrar un valor de cero."]
[]
[null,null,null,{"$f":"E14","v":"INDICADOR"},null,"Breve Explicación del comportamiento del indicador y sus variables en el periodo (desde línea base)"]
[null,null,null,{"$f":"E15","v":"Porcentaje de procedimientos terapéuticos ambulatorios de alta especialidad realizadosFÓRMULA: VARIABLE1 / VARIABLE2 X 100"}]
[]
[]
[]
[]
[]
[]
[]
[]
[]
[]
[]
[]
[]
[]
[null,null,null,{"$f":"F14","v":"VARIABLE 1 "},null,{"$f":"G14","v":"VARIABLE 2"}]
[null,null,null,{"$f":"F15","v":"Número de procedimientos terapéuticos ambulatorios realizados considerados de alta especialidad por la institución "},null,{"$f":"G15","v":"Total de procedimientos terapéuticos ambulatorios realizados x 100"}]

{"sheet":"E023 IND 7","index":6,"n_rows":50,"n_cols":7,"rows_kept":50,"cut":false,"hidden":false,"merged":[[33,3,33,4],[33,5,46,6],[48,3,48,4],[48,5,48,6],[49,3,49,4],[49,5,49,6],[32,3,32,4],[32,5,32,6],[12,6,12,7],[13,1,23,1],[13,2,13,3],[14,2,14,3],[16,2,23,2],[25,3,25,6],[26,3,26,6],[27,1,27,6],[28,1,28,6],[29,1,29,6],[30,1,30,6],[2,4,2,5],[3,4,3,5],[4,4,4,5],[5,4,5,5],[7,1,7,3]]}
[null,"COMISION COORDINADORA DE INSTITUTOS NACIONALES DE SALUD"]
[null,"Y HOSPITALES DE ALTA ESPECIALIDAD"]
[null,"Coordinación de Proyectos Estratégicos",null,null,"MATRIZ DE INDICADORES PARA RESULTADOS (MIR) 2016"]
[null,null,null,null,"PP:  E023 \"ATENCIÓN A LA SALUD\""]
[]
[null,null,null,null,"EVOLUCIÓN EN EL PERIODO"]
[]
[null,"Clave entidad/unidad:   NCA"]
[]
[null,"Entidad/unidad:   INSTITUTO NACIONAL DE CARDIOLOGÍA IGNACIO CHÁVEZ"]
[]
[]
[]
[null,7,"LINEA BASE INDICADOR",null,"INDICADOR","VARIABLE 1 ","VARIABLE 2"]
[null,null,"AÑO",null,"Eficacia en el otorgamiento de consulta \nprogramada (primera vez, subsecuente, preconsulta) \n\nFÓRMULA: VARIABLE1 / VARIABLE2 X 100","Número de consultas realizadas \n(primera vez, subsecuente, preconsulta) ","Número de consultas programadas (primera vez, subsecuente, preconsulta) x 100"]
[null,null,"1/","2016",{"$f":"IF(G16=0,0,ROUND((F16)/G16*100,1))","v":95.6},3361294,3514874]
[null,null,"2/","2009",{"$f":"IF(G17=0,0,ROUND(F17/G17*100,1))","v":0}]
[null,null,null,"2010",{"$f":"IF(G18=0,0,ROUND(F18/G18*100,1))","v":0}]
[null,null,null,"2011",0]
[null,null,null,"2012",0]
[null,null,null,"2013",0]
[null,null,null,"2014",0]
[null,null,null,"2015",0]
[null,null,null,"2016",104.6,115818,110775]
[]
[null,"1/",null,"Línea base del indicador registrada en el PASH 2016: año en que empieza a operar el indicador para el programa (CCINSHAE)."]
[null,"2/",null,"Línea base del indicador institucional: año en que empieza a operar el indicador para la Institución."]
[null,"INSTRUCTIVO"]
[null,"I. Llenar los valores de la tabla a partir del año en que la entidad comprometió el indicador (Línea base)"]
[null,"II. Llenar todos los ejercicios fiscales posteriores al año de la línea base hasta el año 2016 con el valor de cierre de cada ejercicio fiscal; en el caso que sea un indicador nuevo registrar el valor programado."]
[null,"III. Los ejercicios fiscales en que no se comprometío el indicador deberán registrar un valor de cero."]
[]
[null,null,null,{"$f":"E14","v":"INDICADOR"},null,"Breve Explicación del comportamiento del indicador y sus variables en el periodo (desde línea base)"]
[null,null,null,{"$f":"E15","v":"Eficacia en el otorgamiento de consulta programada (primera vez, subsecuente, preconsulta) FÓRMULA: VARIABLE1 / VARIABLE2 X 100"}]
[]
[]
[]
[]
[]
[]
[]
[]
[]
[]
[]
[]
[]
[]
[null,null,null,{"$f":"F14","v":"VARIABLE 1 "},null,{"$f":"G14","v":"VARIABLE 2"}]
[null,null,null,{"$f":"F15","v":"Número de consultas realizadas (primera vez, subsecuente, preconsulta) "},null,{"$f":"G15","v":"Número de consultas programadas (primera vez, subsecuente, preconsulta) x 100"}]

{"sheet":"E023 IND 8","index":7,"n_rows":50,"n_cols":7,"rows_kept":50,"cut":false,"hidden":false,"merged":[[33,3,33,4],[33,5,46,6],[48,3,48,4],[48,5,48,6],[49,3,49,4],[49,5,49,6],[32,3,32,4],[32,5,32,6],[12,6,12,7],[13,1,23,1],[13,2,13,3],[14,2,14,3],[16,2,23,2],[25,3,25,6],[26,3,26,6],[27,1,27,6],[28,1,28,6],[29,1,29,6],[30,1,30,6],[2,4,2,5],[3,4,3,5],[4,4,4,5],[5,4,5,5],[7,1,7,3]]}
[null,"COMISION COORDINADORA DE INSTITUTOS NACIONALES DE SALUD"]
[null,"Y HOSPITALES DE ALTA ESPECIALIDAD"]
[null,"Coordinación de Proyectos Estratégicos",null,null,"MATRIZ DE INDICADORES PARA RESULTADOS (MIR) 2016"]
[null,null,null,null,"PP:  E023 \"ATENCIÓN A LA SALUD\""]
[]
[null,null,null,null,"EVOLUCIÓN EN EL PERIODO"]
[]
[null,"Clave entidad/unidad:   NCA"]
[]
[null,"Entidad/unidad:   INSTITUTO NACIONAL DE CARDIOLOGÍA IGNACIO CHÁVEZ"]
[]
[]
[]
[null,8,"LINEA BASE INDICADOR",null,"INDICADOR","VARIABLE 1 ","VARIABLE 2"]
[null,null,"AÑO",null,"Porcentaje de usuarios con percepción de \nsatisfacción de la calidad de la atención médica hospitalaria recibida superior a 80 puntos\n\nFÓRMULA: VARIABLE1 / VARIABLE2 X 100","Número de usuarios en atención hospitalaria que manifestaron una calificación de percepción de satisfacción de la calidad de la atención recibida superior a 80 puntos ","Total de usuarios en atención hospitalaria encuestados x 100\n"]
[null,null,"1/","2016",{"$f":"IF(G16=0,0,ROUND((F16)/G16*100,1))","v":87.8},23946,27267]
[null,null,"2/","2009",{"$f":"IF(G17=0,0,ROUND(F17/G17*100,1))","v":0}]
[null,null,null,"2010",{"$f":"IF(G18=0,0,ROUND(F18/G18*100,1))","v":0}]
[null,null,null,"2011",0]
[null,null,null,"2012",0]
[null,null,null,"2013",0]
[null,null,null,"2014",0]
[null,null,null,"2015",0]
[null,null,null,"2016",89.8,823,916]
[]
[null,"1/",null,"Línea base del indicador registrada en el PASH 2016: año en que empieza a operar el indicador para el programa (CCINSHAE)."]
[null,"2/",null,"Línea base del indicador institucional: año en que empieza a operar el indicador para la Institución."]
[null,"INSTRUCTIVO"]
[null,"I. Llenar los valores de la tabla a partir del año en que la entidad comprometió el indicador (Línea base)"]
[null,"II. Llenar todos los ejercicios fiscales posteriores al año de la línea base hasta el año 2016 con el valor de cierre de cada ejercicio fiscal; en el caso que sea un indicador nuevo registrar el valor programado."]
[null,"III. Los ejercicios fiscales en que no se comprometío el indicador deberán registrar un valor de cero."]
[]
[null,null,null,{"$f":"E14","v":"INDICADOR"},null,"Breve Explicación del comportamiento del indicador y sus variables en el periodo (desde línea base)"]
[null,null,null,{"$f":"E15","v":"Porcentaje de usuarios con percepción de satisfacción de la calidad de la atención médica hospitalaria recibida superior a 80 puntosFÓRMULA: VARIABLE1 / VARIABLE2 X 100"}]
[]
[]
[]
[]
[]
[]
[]
[]
[]
[]
[]
[]
[]
[]
[null,null,null,{"$f":"F14","v":"VARIABLE 1 "},null,{"$f":"G14","v":"VARIABLE 2"}]
[null,null,null,{"$f":"F15","v":"Número de usuarios en atención hospitalaria que manifestaron una calificación de percepción de satisfacción de la calidad de la atención recibida superior a 80 puntos "},null,{"$f":"G15","v":"Total de usuarios en atención hospitalaria encuestados x 100"}]

{"sheet":"E023 IND 9","index":8,"n_rows":50,"n_cols":7,"rows_kept":50,"cut":false,"hidden":false,"merged":[[33,3,33,4],[33,5,46,6],[48,3,48,4],[48,5,48,6],[49,3,49,4],[49,5,49,6],[32,3,32,4],[32,5,32,6],[12,6,12,7],[13,1,23,1],[13,2,13,3],[14,2,14,3],[16,2,23,2],[25,3,25,6],[26,3,26,6],[27,1,27,6],[28,1,28,6],[29,1,29,6],[30,1,30,6],[2,4,2,5],[3,4,3,5],[4,4,4,5],[5,4,5,5],[7,1,7,3]]}
[null,"COMISION COORDINADORA DE INSTITUTOS NACIONALES DE SALUD"]
[null,"Y HOSPITALES DE ALTA ESPECIALIDAD"]
[null,"Coordinación de Proyectos Estratégicos",null,null,"MATRIZ DE INDICADORES PARA RESULTADOS (MIR) 2016"]
[null,null,null,null,"PP:  E023 \"ATENCIÓN A LA SALUD\""]
[]
[null,null,null,null,"EVOLUCIÓN EN EL PERIODO"]
[]
[null,"Clave entidad/unidad:   NCA"]
[]
[null,"Entidad/unidad:   INSTITUTO NACIONAL DE CARDIOLOGÍA IGNACIO CHÁVEZ"]
[]
[]
[]
[null,9,"LINEA BASE INDICADOR",null,"INDICADOR","VARIABLE 1 ","VARIABLE 2"]
[null,null,"AÑO",null,"Porcentaje  de expedientes clínicos revisados aprobados conforme a la NOM SSA 004\n\nFÓRMULA: VARIABLE1 / VARIABLE2 X 100","Número de expedientes clínicos revisados  que cumplen con los criterios de la NOM SSA 004 ","Total de expedientes revisados por el Comité del expediente clínico institucional x 100"]
[null,null,"1/","2012",{"$f":"IF(G16=0,0,ROUND(F16/G16*100,1))","v":71.7},11973,16691]
[null,null,"2/","2009",{"$f":"IF(G17=0,0,ROUND(F17/G17*100,1))","v":0}]
[null,null,null,"2010",{"$f":"IF(G18=0,0,ROUND(F18/G18*100,1))","v":0}]
[null,null,null,"2011",0]
[null,null,null,"2012",74.099999999999994,343,463]
[null,null,null,"2013",81.7,384,470]
[null,null,null,"2014",89.8,281,313]
[null,null,null,"2015",93.4,253,271]
[null,null,null,"2016",96.5,273,283]
[]
[null,"1/",null,"Línea base del indicador registrada en el PASH 2016: año en que empieza a operar el indicador para el programa (CCINSHAE)."]
[null,"2/",null,"Línea base del indicador institucional: año en que empieza a operar el indicador para la Institución."]
[null,"INSTRUCTIVO"]
[null,"I. Llenar los valores de la tabla a partir del año en que la entidad comprometió el indicador (Línea base)"]
[null,"II. Llenar todos los ejercicios fiscales posteriores al año de la línea base hasta el año 2016 con el valor de cierre de cada ejercicio fiscal; en el caso que sea un indicador nuevo registrar el valor programado."]
[null,"III. Los ejercicios fiscales en que no se comprometío el indicador deberán registrar un valor de cero."]
[]
[null,null,null,{"$f":"E14","v":"INDICADOR"},null,"Breve Explicación del comportamiento del indicador y sus variables en el periodo (desde línea base)"]
[null,null,null,{"$f":"E15","v":"Porcentaje  de expedientes clínicos revisados aprobados conforme a la NOM SSA 004FÓRMULA: VARIABLE1 / VARIABLE2 X 100"},null,"Se observa un incremento en el porcentaje de expedientes clínicos aprobados conforme a la NOM SSA 004 debido a la mejora de la integración de documentos, que se deriva de la incorporación automática de notas e indicaciones médicas dentro del expediente clínico electrónico. \nLa disminución de expedientes revisados, en los últimos periodos, ha optimizado el proceso de mejora en la revisión de los mismos pemitiendo el cumplimiento con la Norma. "]
[]
[]
[]
[]
[]
[]
[]
[]
[]
[]
[]
[]
[]
[]
[null,null,null,{"$f":"F14","v":"VARIABLE 1 "},null,{"$f":"G14","v":"VARIABLE 2"}]
[null,null,null,{"$f":"F15","v":"Número de expedientes clínicos revisados  que cumplen con los criterios de la NOM SSA 004 "},null,{"$f":"G15","v":"Total de expedientes revisados por el Comité del expediente clínico institucional x 100"}]

{"sheet":"E023 IND 10","index":9,"n_rows":50,"n_cols":7,"rows_kept":50,"cut":false,"hidden":false,"merged":[[33,3,33,4],[33,5,46,6],[48,3,48,4],[48,5,48,6],[49,3,49,4],[49,5,49,6],[32,3,32,4],[32,5,32,6],[12,6,12,7],[13,1,23,1],[13,2,13,3],[14,2,14,3],[16,2,23,2],[25,3,25,6],[26,3,26,6],[27,1,27,6],[28,1,28,6],[29,1,29,6],[30,1,30,6],[2,4,2,5],[3,4,3,5],[4,4,4,5],[5,4,5,5],[7,1,7,3]]}
[null,"COMISION COORDINADORA DE INSTITUTOS NACIONALES DE SALUD"]
[null,"Y HOSPITALES DE ALTA ESPECIALIDAD"]
[null,"Coordinación de Proyectos Estratégicos",null,null,"MATRIZ DE INDICADORES PARA RESULTADOS (MIR) 2016"]
[null,null,null,null,"PP:  E023 \"ATENCIÓN A LA SALUD\""]
[]
[null,null,null,null,"EVOLUCIÓN EN EL PERIODO"]
[]
[null,"Clave entidad/unidad:  NCA"]
[]
[null,"Entidad/unidad:   INSTITUTO NACIONAL DE CARDIOLOGÍA IGNACIO CHÁVEZ"]
[]
[]
[]
[null,10,"LINEA BASE INDICADOR",null,"INDICADOR","VARIABLE 1 ","VARIABLE 2"]
[null,null,"AÑO",null,"Porcentaje de auditorías clínicas incorporadas\n\nFÓRMULA: VARIABLE1 / VARIABLE2 X 100","Número de auditorías clínicas realizadas "," Número de auditorías clínicas programadas \nx 100\n"]
[null,null,"1/","2016",{"$f":"IF(G16=0,0,ROUND((F16)/G16*100,1))","v":100},35,35]
[null,null,"2/","2009",{"$f":"IF(G17=0,0,ROUND(F17/G17*100,1))","v":0}]
[null,null,null,"2010",{"$f":"IF(G18=0,0,ROUND(F18/G18*100,1))","v":0}]
[null,null,null,"2011",0]
[null,null,null,"2012",0]
[null,null,null,"2013",0]
[null,null,null,"2014",0]
[null,null,null,"2015",0]
[null,null,null,"2016",100,1,1]
[]
[null,"1/",null,"Línea base del indicador registrada en el PASH 2016: año en que empieza a operar el indicador para el programa (CCINSHAE)."]
[null,"2/",null,"Línea base del indicador institucional: año en que empieza a operar el indicador para la Institución."]
[null,"INSTRUCTIVO"]
[null,"I. Llenar los valores de la tabla a partir del año en que la entidad comprometió el indicador (Línea base)"]
[null,"II. Llenar todos los ejercicios fiscales posteriores al año de la línea base hasta el año 2016 con el valor de cierre de cada ejercicio fiscal; en el caso que sea un indicador nuevo registrar el valor programado."]
[null,"III. Los ejercicios fiscales en que no se comprometío el indicador deberán registrar un valor de cero."]
[]
[null,null,null,{"$f":"E14","v":"INDICADOR"},null,"Breve Explicación del comportamiento del indicador y sus variables en el periodo (desde línea base)"]
[null,null,null,{"$f":"E15","v":"Porcentaje de auditorías clínicas incorporadasFÓRMULA: VARIABLE1 / VARIABLE2 X 100"}]
[]
[]
[]
[]
[]
[]
[]
[]
[]
[]
[]
[]
[]
[]
[null,null,null,{"$f":"F14","v":"VARIABLE 1 "},null,{"$f":"G14","v":"VARIABLE 2"}]
[null,null,null,{"$f":"F15","v":"Número de auditorías clínicas realizadas "},null,{"$f":"G15","v":" Número de auditorías clínicas programadas x 100"}]

{"sheet":"E023 IND 11","index":10,"n_rows":50,"n_cols":7,"rows_kept":50,"cut":false,"hidden":false,"merged":[[33,3,33,4],[33,5,46,6],[48,3,48,4],[48,5,48,6],[49,3,49,4],[49,5,49,6],[32,3,32,4],[32,5,32,6],[12,6,12,7],[13,1,23,1],[13,2,13,3],[14,2,14,3],[16,2,23,2],[25,3,25,6],[26,3,26,6],[27,1,27,6],[28,1,28,6],[29,1,29,6],[30,1,30,6],[2,4,2,5],[3,4,3,5],[4,4,4,5],[5,4,5,5],[7,1,7,3]]}
[null,"COMISION COORDINADORA DE INSTITUTOS NACIONALES DE SALUD"]
[null,"Y HOSPITALES DE ALTA ESPECIALIDAD"]
[null,"Coordinación de Proyectos Estratégicos",null,null,"MATRIZ DE INDICADORES PARA RESULTADOS (MIR) 2016"]
[null,null,null,null,"PP:  E023 \"ATENCIÓN A LA SALUD\""]
[]
[null,null,null,null,"EVOLUCIÓN EN EL PERIODO"]
[]
[null,"Clave entidad/unidad:   NCA"]
[]
[null,"Entidad/unidad:   INSTITUTO NACIONAL DE CARDIOLOGÍA IGNACIO CHÁVEZ"]
[]
[]
[]
[null,11,"LINEA BASE INDICADOR",null,"INDICADOR","VARIABLE 1 ","VARIABLE 2"]
[null,null,"AÑO",null,"Porcentaje de ocupación hospitalaria\n\nFÓRMULA: VARIABLE1 / VARIABLE2 X 100","Número de días paciente durante el período\n","Número de días cama durante el período x 100"]
[null,null,"1/","2009",{"$f":"IF(G16=0,0,ROUND(F16/G16*100,1))","v":74.2},1160535,1564679]
[null,null,"2/","2009",{"$f":"IF(G17=0,0,ROUND(F17/G17*100,1))","v":71.7},54194,75555]
[null,null,null,"2010",{"$f":"IF(G18=0,0,ROUND(F18/G18*100,1))","v":69.099999999999994},53747,77745]
[null,null,null,"2011",66.7,51832,77745]
[null,null,null,"2012",78.7,61331,77958]
[null,null,null,"2013",78.8,61259,77745]
[null,null,null,"2014",80.400000000000006,62521,77745]
[null,null,null,"2015",80,62167,77745]
[null,null,null,"2016",80.8,62969,77958]
[]
[null,"1/",null,"Línea base del indicador registrada en el PASH 2016: año en que empieza a operar el indicador para el programa (CCINSHAE)."]
[null,"2/",null,"Línea base del indicador institucional: año en que empieza a operar el indicador para la Institución."]
[null,"INSTRUCTIVO"]
[null,"I. Llenar los valores de la tabla a partir del año en que la entidad comprometió el indicador (Línea base)"]
[null,"II. Llenar todos los ejercicios fiscales posteriores al año de la línea base hasta el año 2016 con el valor de cierre de cada ejercicio fiscal; en el caso que sea un indicador nuevo registrar el valor programado."]
[null,"III. Los ejercicios fiscales en que no se comprometío el indicador deberán registrar un valor de cero."]
[]
[null,null,null,{"$f":"E14","v":"INDICADOR"},null,"Breve Explicación del comportamiento del indicador y sus variables en el periodo (desde línea base)"]
[null,null,null,{"$f":"E15","v":"Porcentaje de ocupación hospitalariaFÓRMULA: VARIABLE1 / VARIABLE2 X 100"},null,"El porcentaje de ocupación hospitalaria se ha mantenido constante en los últimos periodos (2012 - 2015). Cabe mencionar que la capacidad instalada para la asistencia institucional ha llegado a su límite, debido al crecimiento en la demanda de atención especializada, de la población con patologías cardiológicas de alta complejidad"]
[]
[]
[]
[]
[]
[]
[]
[]
[]
[]
[]
[]
[]
[]
[null,null,null,{"$f":"F14","v":"VARIABLE 1 "},null,{"$f":"G14","v":"VARIABLE 2"}]
[null,null,null,{"$f":"F15","v":"Número de días paciente durante el período"},null,{"$f":"G15","v":"Número de días cama durante el período x 100"}]

{"sheet":"E023 IND 12","index":11,"n_rows":50,"n_cols":7,"rows_kept":50,"cut":false,"hidden":false,"merged":[[33,3,33,4],[33,5,46,6],[48,3,48,4],[48,5,48,6],[49,3,49,4],[49,5,49,6],[32,3,32,4],[32,5,32,6],[12,6,12,7],[13,1,23,1],[13,2,13,3],[14,2,14,3],[16,2,23,2],[25,3,25,6],[26,3,26,6],[27,1,27,6],[28,1,28,6],[29,1,29,6],[30,1,30,6],[2,4,2,5],[3,4,3,5],[4,4,4,5],[5,4,5,5],[7,1,7,3]]}
[null,"COMISION COORDINADORA DE INSTITUTOS NACIONALES DE SALUD"]
[null,"Y HOSPITALES DE ALTA ESPECIALIDAD"]
[null,"Coordinación de Proyectos Estratégicos",null,null,"MATRIZ DE INDICADORES PARA RESULTADOS (MIR) 2016"]
[null,null,null,null,"PP:  E023 \"ATENCIÓN A LA SALUD\""]
[]
[null,null,null,null,"EVOLUCIÓN EN EL PERIODO"]
[]
[null,"Clave entidad/unidad:   NCA"]
[]
[null,"Entidad/unidad:   INSTITUTO NACIONAL DE CARDIOLOGÍA IGNACIO CHÁVEZ"]
[]
[]
[]
[null,12,"LINEA BASE INDICADOR",null,"INDICADOR","VARIABLE 1 ","VARIABLE 2"]
[null,null,"AÑO",null,"Promedio de días estancia \n\nFÓRMULA: VARIABLE1 / VARIABLE2 ","Número de días estancia\n","Total de egresos hospitalarios\n"]
[null,null,"1/","2016",{"$f":"IF(G16=0,0,ROUND((F16)/G16*1,1))","v":7},1257099,180010]
[null,null,"2/","2009",{"$f":"IF(G17=0,0,ROUND(F17/G17*1,1))","v":0}]
[null,null,null,"2010",{"$f":"IF(G18=0,0,ROUND(F18/G18*1,1))","v":0}]
[null,null,null,"2011",0]
[null,null,null,"2012",0]
[null,null,null,"2013",0]
[null,null,null,"2014",0]
[null,null,null,"2015",0]
[null,null,null,"2016",10.199999999999999,58861,5792]
[]
[null,"1/",null,"Línea base del indicador registrada en el PASH 2016: año en que empieza a operar el indicador para el programa (CCINSHAE)."]
[null,"2/",null,"Línea base del indicador institucional: año en que empieza a operar el indicador para la Institución."]
[null,"INSTRUCTIVO"]
[null,"I. Llenar los valores de la tabla a partir del año en que la entidad comprometió el indicador (Línea base)"]
[null,"II. Llenar todos los ejercicios fiscales posteriores al año de la línea base hasta el año 2016 con el valor de cierre de cada ejercicio fiscal; en el caso que sea un indicador nuevo registrar el valor programado."]
[null,"III. Los ejercicios fiscales en que no se comprometío el indicador deberán registrar un valor de cero."]
[]
[null,null,null,{"$f":"E14","v":"INDICADOR"},null,"Breve Explicación del comportamiento del indicador y sus variables en el periodo (desde línea base)"]
[null,null,null,{"$f":"E15","v":"Promedio de días estancia FÓRMULA: VARIABLE1 / VARIABLE2 "}]
[]
[]
[]
[]
[]
[]
[]
[]
[]
[]
[]
[]
[]
[]
[null,null,null,{"$f":"F14","v":"VARIABLE 1 "},null,{"$f":"G14","v":"VARIABLE 2"}]
[null,null,null,{"$f":"F15","v":"Número de días estancia"},null,{"$f":"G15","v":"Total de egresos hospitalarios"}]

{"sheet":"E023 IND 13","index":12,"n_rows":50,"n_cols":7,"rows_kept":50,"cut":false,"hidden":false,"merged":[[33,3,33,4],[33,5,46,6],[48,3,48,4],[48,5,48,6],[49,3,49,4],[49,5,49,6],[32,3,32,4],[32,5,32,6],[12,6,12,7],[13,1,23,1],[13,2,13,3],[14,2,14,3],[16,2,23,2],[25,3,25,6],[26,3,26,6],[27,1,27,6],[28,1,28,6],[29,1,29,6],[30,1,30,6],[2,4,2,5],[3,4,3,5],[4,4,4,5],[5,4,5,5],[7,1,7,3]]}
[null,"COMISION COORDINADORA DE INSTITUTOS NACIONALES DE SALUD"]
[null,"Y HOSPITALES DE ALTA ESPECIALIDAD"]
[null,"Coordinación de Proyectos Estratégicos",null,null,"MATRIZ DE INDICADORES PARA RESULTADOS (MIR) 2016"]
[null,null,null,null,"PP:  E023 \"ATENCIÓN A LA SALUD\""]
[]
[null,null,null,null,"EVOLUCIÓN EN EL PERIODO"]
[]
[null,"Clave entidad/unidad:   NCA"]
[]
[null,"Entidad/unidad:   INSTITUTO NACIONAL DE CARDIOLOGÍA IGNACIO CHÁVEZ"]
[]
[]
[]
[null,13,"LINEA BASE INDICADOR",null,"INDICADOR","VARIABLE 1 ","VARIABLE 2"]
[null,null,"AÑO",null,"Proporción de consultas de primera vez respecto a preconsultas\n\nFÓRMULA: VARIABLE1 / VARIABLE2 X 100","Número de consultas de primera vez otorgadas en el periodo ","Número de preconsultas otorgadas en el periodo x 100"]
[null,null,"1/","2016",{"$f":"IF(G16=0,0,ROUND(F16/G16*100,1))","v":69.7},178880,256548]
[null,null,"2/","2009",{"$f":"IF(G17=0,0,ROUND(F17/G17*100,1))","v":0}]
[null,null,null,"2010",{"$f":"IF(G18=0,0,ROUND(F18/G18*100,1))","v":0}]
[null,null,null,"2011",0]
[null,null,null,"2012",0]
[null,null,null,"2013",0]
[null,null,null,"2014",0]
[null,null,null,"2015",0]
[null,null,null,"2016",84.5,4839,5725]
[]
[null,"1/",null,"Línea base del indicador registrada en el PASH 2016: año en que empieza a operar el indicador para el programa (CCINSHAE)."]
[null,"2/",null,"Línea base del indicador institucional: año en que empieza a operar el indicador para la Institución."]
[null,"INSTRUCTIVO"]
[null,"I. Llenar los valores de la tabla a partir del año en que la entidad comprometió el indicador (Línea base)"]
[null,"II. Llenar todos los ejercicios fiscales posteriores al año de la línea base hasta el año 2016 con el valor de cierre de cada ejercicio fiscal; en el caso que sea un indicador nuevo registrar el valor programado."]
[null,"III. Los ejercicios fiscales en que no se comprometío el indicador deberán registrar un valor de cero."]
[]
[null,null,null,{"$f":"E14","v":"INDICADOR"},null,"Breve Explicación del comportamiento del indicador y sus variables en el periodo (desde línea base)"]
[null,null,null,{"$f":"E15","v":"Proporción de consultas de primera vez respecto a preconsultasFÓRMULA: VARIABLE1 / VARIABLE2 X 100"}]
[]
[]
[]
[]
[]
[]
[]
[]
[]
[]
[]
[]
[]
[]
[null,null,null,{"$f":"F14","v":"VARIABLE 1 "},null,{"$f":"G14","v":"VARIABLE 2"}]
[null,null,null,{"$f":"F15","v":"Número de consultas de primera vez otorgadas en el periodo "},null,{"$f":"G15","v":"Número de preconsultas otorgadas en el periodo x 100"}]

{"sheet":"E023 IND 14","index":13,"n_rows":50,"n_cols":7,"rows_kept":50,"cut":false,"hidden":false,"merged":[[33,3,33,4],[33,5,46,6],[48,3,48,4],[48,5,48,6],[49,3,49,4],[49,5,49,6],[32,3,32,4],[32,5,32,6],[12,6,12,7],[13,1,23,1],[13,2,13,3],[14,2,14,3],[16,2,23,2],[25,3,25,6],[26,3,26,6],[27,1,27,6],[28,1,28,6],[29,1,29,6],[30,1,30,6],[2,4,2,5],[3,4,3,5],[4,4,4,5],[5,4,5,5],[7,1,7,3]]}
[null,"COMISION COORDINADORA DE INSTITUTOS NACIONALES DE SALUD"]
[null,"Y HOSPITALES DE ALTA ESPECIALIDAD"]
[null,"Coordinación de Proyectos Estratégicos",null,null,"MATRIZ DE INDICADORES PARA RESULTADOS (MIR) 2016"]
[null,null,null,null,"PP:  E023 \"ATENCIÓN A LA SALUD\""]
[]
[null,null,null,null,"EVOLUCIÓN EN EL PERIODO"]
[]
[null,"Clave entidad/unidad:   NCA"]
[]
[null,"Entidad/unidad:    INSTITUTO NACIONAL DE CARDIOLOGÍA IGNACIO CHÁVEZ"]
[]
[]
[]
[null,14,"LINEA BASE INDICADOR",null,"INDICADOR","VARIABLE 1 ","VARIABLE 2"]
[null,null,"AÑO",null,"Tasa de infección nosocomial (por mil días de estancia hospitalaria)\n\nFÓRMULA: VARIABLE1 / VARIABLE2 X 1000","Número de episodios de infecciones nosocomiales registrados en el periodo de reporte ","Total de días estancia en el periodo de reporte x 1000"]
[null,null,"1/","2015",{"$f":"IF(G16=0,0,ROUND(F16/G16*1000,1))","v":7.6},8331,1093170]
[null,null,"2/","2009",{"$f":"IF(G17=0,0,ROUND(F17/G17*1000,1))","v":0}]
[null,null,null,"2010",{"$f":"IF(G18=0,0,ROUND(F18/G18*1000,1))","v":0}]
[null,null,null,"2011",0]
[null,null,null,"2012",0]
[null,null,null,"2013",0]
[null,null,null,"2014",0]
[null,null,null,"2015",4.7,271,57272]
[null,null,null,"2016",4.4000000000000004,257,58861]
[]
[null,"1/",null,"Línea base del indicador registrada en el PASH 2016: año en que empieza a operar el indicador para el programa (CCINSHAE)."]
[null,"2/",null,"Línea base del indicador institucional: año en que empieza a operar el indicador para la Institución."]
[null,"INSTRUCTIVO"]
[null,"I. Llenar los valores de la tabla a partir del año en que la entidad comprometió el indicador (Línea base)"]
[null,"II. Llenar todos los ejercicios fiscales posteriores al año de la línea base hasta el año 2016 con el valor de cierre de cada ejercicio fiscal; en el caso que sea un indicador nuevo registrar el valor programado."]
[null,"III. Los ejercicios fiscales en que no se comprometío el indicador deberán registrar un valor de cero."]
[]
[null,null,null,{"$f":"E14","v":"INDICADOR"},null,"Breve Explicación del comportamiento del indicador y sus variables en el periodo (desde línea base)"]
[null,null,null,{"$f":"E15","v":"Tasa de infección nosocomial (por mil días de estancia hospitalaria)FÓRMULA: VARIABLE1 / VARIABLE2 X 1000"}]
[]
[]
[]
[]
[]
[]
[]
[]
[]
[]
[]
[]
[]
[]
[null,null,null,{"$f":"F14","v":"VARIABLE 1 "},null,{"$f":"G14","v":"VARIABLE 2"}]
[null,null,null,{"$f":"F15","v":"Número de episodios de infecciones nosocomiales registrados en el periodo de reporte "},null,{"$f":"G15","v":"Total de días estancia en el periodo de reporte x 1000"}]